[Event "*** Titled Tuesday Blitz"]
[Site "Chess.com"]
[Date "2018.01.02"]
[Round "2"]
[White "ViktorMatviishen"]
[Black "PinguInTheCity"]
[Result "1-0"]
[WhiteElo "2226"]
[BlackElo "2088"]
[TimeControl "180+2"]
[EndTime "13:22:06 PST"]
[Termination "ViktorMatviishen won by checkmate"]

1. d4 {[%clk 0:03:01.9]} 1... Nf6 {[%clk 0:02:59.8]} 2. c4 {[%clk 0:03:03.4]}
2... e6 {[%clk 0:03:00.6]} 3. Nf3 {[%clk 0:03:03.9]} 3... d5 {[%clk 0:03:01.3]}
4. g3 {[%clk 0:03:05.1]} 4... Be7 {[%clk 0:02:59.1]} 5. Bg2 {[%clk 0:03:05.5]}
5... O-O {[%clk 0:03:00.5]} 6. O-O {[%clk 0:03:06.6]} 6... c6 {[%clk 0:03:01.2]}
7. Qc2 {[%clk 0:03:05.9]} 7... Nbd7 {[%clk 0:03:01.9]} 8. Nbd2 {[%clk
0:03:04.4]} 8... b6 {[%clk 0:03:01.5]} 9. b3 {[%clk 0:03:05.4]} 9... Ba6 {[%clk
0:03:00.9]} 10. Bb2 {[%clk 0:03:06.5]} 10... Rc8 {[%clk 0:03:01.3]} 11. Rfd1
{[%clk 0:03:07.5]} 11... c5 {[%clk 0:02:58.8]} 12. e4 {[%clk 0:03:04.9]} 12...
dxc4 {[%clk 0:02:19.2]} 13. bxc4 {[%clk 0:02:55.4]} 13... cxd4 {[%clk
0:02:16.3]} 14. e5 {[%clk 0:02:55.5]} 14... Nd5 {[%clk 0:01:52.7]} 15. Qe4
{[%clk 0:02:30.9]} 15... Nc5 {[%clk 0:01:47.4]} 16. Qxd4 {[%clk 0:02:28.7]}
16... Nb4 {[%clk 0:01:46.5]} 17. Qg4 {[%clk 0:02:24.8]} 17... Ncd3 {[%clk
0:01:33.8]} 18. Bc3 {[%clk 0:02:16.9]} 18... Nc2 {[%clk 0:01:12.5]} 19. Rab1
{[%clk 0:02:10.1]} 19... Na3 {[%clk 0:01:07.8]} 20. Rb3 {[%clk 0:02:11.2]} 20...
Nxc4 {[%clk 0:01:07.9]} 21. Ne4 {[%clk 0:02:10.8]} 21... Kh8 {[%clk 0:00:54.2]}
22. Bf1 {[%clk 0:02:04.2]} 22... Na3 {[%clk 0:00:47.4]} 23. Nd6 {[%clk
0:01:54.8]} 23... Bxd6 {[%clk 0:00:19.1]} 24. exd6 {[%clk 0:01:50.9]} 24... f6
{[%clk 0:00:19.8]} 25. Rxa3 {[%clk 0:01:50.2]} 25... Qxd6 {[%clk 0:00:19.3]} 26.
Rxa6 {[%clk 0:01:34.1]} 26... Rxc3 {[%clk 0:00:18.7]} 27. Rxa7 {[%clk
0:01:35.6]} 27... g6 {[%clk 0:00:18.3]} 28. Qd4 {[%clk 0:01:34.1]} 28... Qxd4
{[%clk 0:00:14.9]} 29. Nxd4 {[%clk 0:01:35.7]} 29... Ne5 {[%clk 0:00:14.9]} 30.
Nxe6 {[%clk 0:01:35.8]} 30... Re8 {[%clk 0:00:15.7]} 31. Re7 {[%clk 0:01:33.8]}
31... Rec8 {[%clk 0:00:11.3]} 32. Nf4 {[%clk 0:01:30.9]} 32... Rc2 {[%clk
0:00:10]} 33. Nd5 {[%clk 0:01:29.6]} 33... Rf8 {[%clk 0:00:07.1]} 34. Nxf6
{[%clk 0:01:26.2]} 34... Nf7 {[%clk 0:00:04.9]} 35. Rdd7 {[%clk 0:01:21.6]}
35... Kg7 {[%clk 0:00:04.5]} 36. Ne8+ {[%clk 0:01:01.2]} 36... Kg8 {[%clk
0:00:04.6]} 37. Bh3 {[%clk 0:01:00.2]} 37... Ng5 {[%clk 0:00:05.4]} 38. Be6+
{[%clk 0:00:55.4]} 38... Nxe6 {[%clk 0:00:03.7]} 39. Rxe6 {[%clk 0:00:56.3]}
39... Rfxf2 {[%clk 0:00:04.9]} 40. Nf6+ {[%clk 0:00:56.6]} 40... Kf8 {[%clk
0:00:05.5]} 41. Re8# {[%clk 0:00:57.7]} 1-0

[Event "*** Titled Tuesday Blitz"]
[Site "Chess.com"]
[Date "2018.01.02"]
[Round "2"]
[White "TrickyTrapChess"]
[Black "Adham_Fawzy"]
[Result "0-1"]
[WhiteElo "2237"]
[BlackElo "2390"]
[TimeControl "180+2"]
[EndTime "13:22:06 PST"]
[Termination "Adham_Fawzy won by resignation"]

1. c4 {[%clk 0:03:01.9]} 1... e5 {[%clk 0:02:58.8]} 2. Nc3 {[%clk 0:03:02.1]}
2... Nc6 {[%clk 0:02:56.8]} 3. g3 {[%clk 0:03:02.4]} 3... g6 {[%clk 0:02:57.6]}
4. Bg2 {[%clk 0:02:54.8]} 4... Bg7 {[%clk 0:02:58.4]} 5. e3 {[%clk 0:02:55.3]}
5... Nge7 {[%clk 0:02:36.2]} 6. Nge2 {[%clk 0:02:53.6]} 6... O-O {[%clk
0:02:35.7]} 7. O-O {[%clk 0:02:52.2]} 7... d6 {[%clk 0:02:36.3]} 8. d4 {[%clk
0:02:51.3]} 8... exd4 {[%clk 0:02:35.4]} 9. exd4 {[%clk 0:02:49.9]} 9... Bg4
{[%clk 0:02:36]} 10. Be3 {[%clk 0:02:47.1]} 10... Nf5 {[%clk 0:02:33.8]} 11. h3
{[%clk 0:02:46.4]} 11... Bxe2 {[%clk 0:02:29.1]} 12. Qxe2 {[%clk 0:02:46.5]}
12... Ncxd4 {[%clk 0:02:27.4]} 13. Qd3 {[%clk 0:02:43.8]} 13... c6 {[%clk
0:02:16.7]} 14. Rad1 {[%clk 0:02:35.3]} 14... Nxe3 {[%clk 0:01:55.2]} 15. fxe3
{[%clk 0:02:29]} 15... Ne6 {[%clk 0:01:56]} 16. Qxd6 {[%clk 0:02:28.5]} 16...
Qg5 {[%clk 0:01:55.5]} 17. Ne4 {[%clk 0:02:05.6]} 17... Qxe3+ {[%clk 0:01:54]}
18. Kh1 {[%clk 0:02:05.4]} 18... Rad8 {[%clk 0:01:24.5]} 19. Qb4 {[%clk
0:01:33.9]} 19... Rxd1 {[%clk 0:01:18]} 20. Rxd1 {[%clk 0:01:28.6]} 20... Qe2
{[%clk 0:01:16]} 21. Re1 {[%clk 0:01:27.8]} 21... Qd3 {[%clk 0:01:11.4]} 22. b3
{[%clk 0:01:20.6]} 22... b6 {[%clk 0:01:09]} 23. Qd6 {[%clk 0:01:20.5]} 23...
Rd8 {[%clk 0:01:04.6]} 24. Qe7 {[%clk 0:01:16.8]} 24... Qd4 {[%clk 0:00:46.5]}
25. Qxa7 {[%clk 0:01:11.9]} 25... f5 {[%clk 0:00:47.3]} 26. Qe7 {[%clk
0:00:25.9]} 26... Nf8 {[%clk 0:00:19.7]} 27. Ng5 {[%clk 0:00:25.5]} 27... Rd7
{[%clk 0:00:20.8]} 28. Qe2 {[%clk 0:00:25.4]} 28... h6 {[%clk 0:00:19.6]} 29.
Nf3 {[%clk 0:00:26.6]} 29... Qd6 {[%clk 0:00:20.3]} 30. Kh2 {[%clk 0:00:26.6]}
30... h5 {[%clk 0:00:20.7]} 31. h4 {[%clk 0:00:27.3]} 31... Bf6 {[%clk
0:00:21.8]} 32. Kh3 {[%clk 0:00:28.6]} 32... Re7 {[%clk 0:00:22.8]} 33. Qf2
{[%clk 0:00:29.3]} 33... Qd7 {[%clk 0:00:23.3]} 34. Rxe7 {[%clk 0:00:29.8]}
34... Bxe7 {[%clk 0:00:24.3]} 35. Qxb6 {[%clk 0:00:31.6]} 35... f4+ {[%clk
0:00:25.6]} 36. Kh2 {[%clk 0:00:31.3]} 36... Bd6 {[%clk 0:00:26.8]} 37. gxf4
{[%clk 0:00:31.8]} 37... Bxf4+ {[%clk 0:00:28.5]} 38. Kg1 {[%clk 0:00:33.2]}
38... Qd1+ {[%clk 0:00:29.7]} 39. Bf1 {[%clk 0:00:34.4]} 39... Qxf3 {[%clk
0:00:29.2]} 40. Qf2 {[%clk 0:00:34.3]} 40... Be3 {[%clk 0:00:30.2]} 0-1

[Event "*** Titled Tuesday Blitz"]
[Site "Chess.com"]
[Date "2018.01.02"]
[Round "2"]
[White "Keranke"]
[Black "timator"]
[Result "0-1"]
[WhiteElo "2596"]
[BlackElo "2312"]
[TimeControl "180+2"]
[EndTime "13:22:24 PST"]
[Termination "timator won on time"]

1. d4 {[%clk 0:03:01.9]} 1... Nf6 {[%clk 0:02:59.2]} 2. c4 {[%clk 0:03:02.6]}
2... e6 {[%clk 0:03:00.3]} 3. Nc3 {[%clk 0:03:03.6]} 3... Bb4 {[%clk 0:03:01.8]}
4. e3 {[%clk 0:03:04.7]} 4... O-O {[%clk 0:03:02]} 5. Ne2 {[%clk 0:03:06]} 5...
d5 {[%clk 0:03:02.7]} 6. a3 {[%clk 0:03:07]} 6... Be7 {[%clk 0:03:00.1]} 7. cxd5
{[%clk 0:03:07.9]} 7... exd5 {[%clk 0:02:59.9]} 8. Nf4 {[%clk 0:03:09.4]} 8...
c6 {[%clk 0:03:01.3]} 9. Bd3 {[%clk 0:03:10.9]} 9... Nbd7 {[%clk 0:02:56.1]} 10.
O-O {[%clk 0:03:12.1]} 10... Re8 {[%clk 0:02:57.6]} 11. Qc2 {[%clk 0:03:13.3]}
11... Nf8 {[%clk 0:02:58.2]} 12. b4 {[%clk 0:03:12.6]} 12... b5 {[%clk
0:02:54.9]} 13. e4 {[%clk 0:03:10]} 13... dxe4 {[%clk 0:01:43.3]} 14. Nxe4
{[%clk 0:03:11.9]} 14... Bb7 {[%clk 0:01:44.7]} 15. Nc5 {[%clk 0:03:07.6]} 15...
Bxc5 {[%clk 0:01:45.4]} 16. dxc5 {[%clk 0:03:08.3]} 16... Qd4 {[%clk 0:01:44]}
17. Be3 {[%clk 0:02:57]} 17... Qe5 {[%clk 0:01:39.8]} 18. h3 {[%clk 0:02:54.5]}
18... Rad8 {[%clk 0:01:40.5]} 19. Rad1 {[%clk 0:02:54.8]} 19... Bc8 {[%clk
0:01:39.8]} 20. Bc1 {[%clk 0:02:47.8]} 20... Ng6 {[%clk 0:01:34.1]} 21. Nxg6
{[%clk 0:02:37.7]} 21... hxg6 {[%clk 0:01:31.3]} 22. Bb2 {[%clk 0:02:39.2]}
22... Qg5 {[%clk 0:01:31.6]} 23. Kh1 {[%clk 0:02:35.6]} 23... Nd5 {[%clk
0:01:32.6]} 24. Bc1 {[%clk 0:02:13.6]} 24... Qf6 {[%clk 0:01:25.4]} 25. Qb2
{[%clk 0:02:05.4]} 25... Nc3 {[%clk 0:01:03.8]} 26. Rd2 {[%clk 0:01:53.6]} 26...
Bxh3 {[%clk 0:00:59.9]} 27. f3 {[%clk 0:01:34.6]} 27... Bf5 {[%clk 0:00:57]} 28.
Bxf5 {[%clk 0:01:32.5]} 28... gxf5 {[%clk 0:00:57.7]} 29. Rxd8 {[%clk
0:01:30.8]} 29... Rxd8 {[%clk 0:00:57.6]} 30. Bg5 {[%clk 0:01:28.7]} 30... Qxg5
{[%clk 0:00:58.3]} 31. Qxc3 {[%clk 0:01:30.3]} 31... Qh4+ {[%clk 0:00:59.4]} 32.
Kg1 {[%clk 0:01:31.4]} 32... Qf6 {[%clk 0:00:56.8]} 33. Qxf6 {[%clk 0:01:23.6]}
33... gxf6 {[%clk 0:00:58.1]} 34. Ra1 {[%clk 0:01:19.9]} 34... Rd2 {[%clk
0:00:52]} 35. a4 {[%clk 0:01:16.6]} 35... bxa4 {[%clk 0:00:35.8]} 36. Rxa4
{[%clk 0:01:18.5]} 36... Rd7 {[%clk 0:00:37]} 37. Kh2 {[%clk 0:01:16.6]} 37...
Kg7 {[%clk 0:00:36]} 38. Kg3 {[%clk 0:01:18]} 38... Kg6 {[%clk 0:00:37.3]} 39.
Kf4 {[%clk 0:01:18.7]} 39... Rd4+ {[%clk 0:00:38.3]} 40. Ke3 {[%clk 0:01:20.1]}
40... Rd7 {[%clk 0:00:40.2]} 0-1

[Event "*** Titled Tuesday Blitz"]
[Site "Chess.com"]
[Date "2018.01.02"]
[Round "2"]
[White "Dr-Bassem"]
[Black "DrVelja"]
[Result "1-0"]
[WhiteElo "2643"]
[BlackElo "2548"]
[TimeControl "180+2"]
[EndTime "13:22:26 PST"]
[Termination "Dr-Bassem won on time"]

1. e4 {[%clk 0:03:01.9]} 1... c5 {[%clk 0:03:01]} 2. Nf3 {[%clk 0:03:03.1]} 2...
Nc6 {[%clk 0:03:00.1]} 3. d3 {[%clk 0:03:03.7]} 3... g6 {[%clk 0:03:00.1]} 4. g3
{[%clk 0:03:05.1]} 4... Bg7 {[%clk 0:03:01.5]} 5. Bg2 {[%clk 0:03:06.8]} 5... e5
{[%clk 0:03:02.4]} 6. O-O {[%clk 0:03:08.3]} 6... Nge7 {[%clk 0:03:03.9]} 7. c3
{[%clk 0:03:10.2]} 7... O-O {[%clk 0:03:04.6]} 8. a3 {[%clk 0:03:12.1]} 8... f5
{[%clk 0:02:58.5]} 9. b4 {[%clk 0:03:03.5]} 9... d6 {[%clk 0:02:56.8]} 10. Qb3+
{[%clk 0:02:54.1]} 10... Kh8 {[%clk 0:02:57.8]} 11. Ng5 {[%clk 0:02:53.7]} 11...
Qe8 {[%clk 0:02:59]} 12. Nd2 {[%clk 0:02:54.1]} 12... h6 {[%clk 0:02:51.9]} 13.
Ngf3 {[%clk 0:02:35.9]} 13... f4 {[%clk 0:02:48.7]} 14. Nc4 {[%clk 0:02:34.9]}
14... Qd8 {[%clk 0:02:42.5]} 15. b5 {[%clk 0:02:31.9]} 15... Nb8 {[%clk
0:02:38.8]} 16. d4 {[%clk 0:02:30.3]} 16... Be6 {[%clk 0:02:30.2]} 17. Qa4
{[%clk 0:02:03.4]} 17... Nd7 {[%clk 0:02:16.9]} 18. d5 {[%clk 0:01:49.2]} 18...
Bg8 {[%clk 0:02:12.5]} 19. Qc2 {[%clk 0:01:37.6]} 19... Nb6 {[%clk 0:02:06.3]}
20. Nxb6 {[%clk 0:01:38.7]} 20... axb6 {[%clk 0:02:07.6]} 21. c4 {[%clk
0:01:25.1]} 21... g5 {[%clk 0:02:07.6]} 22. Bh3 {[%clk 0:01:22]} 22... Qe8
{[%clk 0:02:01.9]} 23. Bg4 {[%clk 0:01:05.3]} 23... h5 {[%clk 0:01:45.1]} 24.
Be6 {[%clk 0:01:02.5]} 24... Bxe6 {[%clk 0:01:39.3]} 25. dxe6 {[%clk 0:01:04.4]}
25... Qg6 {[%clk 0:01:39.9]} 26. h4 {[%clk 0:00:54.1]} 26... gxh4 {[%clk
0:01:26.4]} 27. Nxh4 {[%clk 0:00:55.6]} 27... Qxe6 {[%clk 0:01:27.4]} 28. Qd1
{[%clk 0:00:56.8]} 28... Qg4 {[%clk 0:01:17]} 29. Kg2 {[%clk 0:00:34.9]} 29...
f3+ {[%clk 0:00:41.8]} 30. Nxf3 {[%clk 0:00:35.4]} 30... Qxe4 {[%clk 0:00:43.3]}
31. Re1 {[%clk 0:00:36.8]} 31... Qxc4 {[%clk 0:00:44.8]} 32. Nh4 {[%clk
0:00:35.8]} 32... Qd5+ {[%clk 0:00:33.4]} 33. Qxd5 {[%clk 0:00:36.1]} 33... Nxd5
{[%clk 0:00:35.3]} 34. Ng6+ {[%clk 0:00:37.7]} 34... Kh7 {[%clk 0:00:37]} 35.
Nxf8+ {[%clk 0:00:39.3]} 35... Rxf8 {[%clk 0:00:38.6]} 36. Rd1 {[%clk
0:00:40.7]} 36... e4 {[%clk 0:00:39]} 37. Rxd5 {[%clk 0:00:38.5]} 1-0

[Event "*** Titled Tuesday Blitz"]
[Site "Chess.com"]
[Date "2018.01.02"]
[Round "2"]
[White "DanielNaroditsky"]
[Black "yosephtaher"]
[Result "1-0"]
[WhiteElo "2815"]
[BlackElo "2512"]
[TimeControl "180+2"]
[EndTime "13:22:31 PST"]
[Termination "DanielNaroditsky won by resignation"]

1. d4 {[%clk 0:03:01.9]} 1... d5 {[%clk 0:02:19]} 2. c4 {[%clk 0:03:02.8]} 2...
e6 {[%clk 0:02:11.7]} 3. Nc3 {[%clk 0:03:03.1]} 3... Nf6 {[%clk 0:02:12.7]} 4.
cxd5 {[%clk 0:03:04.5]} 4... exd5 {[%clk 0:02:13.7]} 5. Bg5 {[%clk 0:03:05.4]}
5... Be7 {[%clk 0:02:15.2]} 6. Qc2 {[%clk 0:03:06.2]} 6... O-O {[%clk
0:02:16.1]} 7. e3 {[%clk 0:03:07.2]} 7... c6 {[%clk 0:02:17.5]} 8. Bd3 {[%clk
0:03:08.4]} 8... h6 {[%clk 0:02:17.5]} 9. Bh4 {[%clk 0:03:09.3]} 9... Re8 {[%clk
0:02:16.4]} 10. Nge2 {[%clk 0:03:10.4]} 10... Nbd7 {[%clk 0:02:15.8]} 11. O-O
{[%clk 0:03:09.8]} 11... a5 {[%clk 0:02:15.2]} 12. f3 {[%clk 0:03:07.4]} 12...
b5 {[%clk 0:02:04.1]} 13. Kh1 {[%clk 0:03:07.8]} 13... Bb7 {[%clk 0:02:02.6]}
14. Bf2 {[%clk 0:02:44.6]} 14... Rc8 {[%clk 0:02:01.5]} 15. e4 {[%clk 0:02:44]}
15... b4 {[%clk 0:02:01.4]} 16. Na4 {[%clk 0:02:27.9]} 16... dxe4 {[%clk
0:02:01.6]} 17. fxe4 {[%clk 0:02:29.3]} 17... Ng4 {[%clk 0:02:02.5]} 18. Bg1
{[%clk 0:02:25.8]} 18... Bg5 {[%clk 0:02:03.6]} 19. Nc5 {[%clk 0:02:11.3]} 19...
Nxc5 {[%clk 0:02:00.6]} 20. Qxc5 {[%clk 0:02:13.2]} 20... Qc7 {[%clk 0:01:45.1]}
21. Bc4 {[%clk 0:02:11.2]} 21... Rf8 {[%clk 0:01:38.5]} 22. Qf5 {[%clk
0:02:02.9]} 22... Nf6 {[%clk 0:01:14.5]} 23. Nf4 {[%clk 0:01:53.3]} 23... c5
{[%clk 0:01:07.4]} 24. d5 {[%clk 0:01:53]} 24... Bxf4 {[%clk 0:01:06]} 25. Rxf4
{[%clk 0:01:52]} 25... Nd7 {[%clk 0:01:06.6]} 26. Rd1 {[%clk 0:01:24.6]} 26...
Qd6 {[%clk 0:01:06.5]} 27. h3 {[%clk 0:01:15.7]} 27... Ne5 {[%clk 0:01:06.2]}
28. Be2 {[%clk 0:01:08.1]} 28... c4 {[%clk 0:01:07]} 29. Bd4 {[%clk 0:01:08.8]}
29... Rfe8 {[%clk 0:01:06.8]} 30. Bxe5 {[%clk 0:01:08.7]} 30... Qxe5 {[%clk
0:01:02.3]} 31. Qxf7+ {[%clk 0:01:10.3]} 31... Kh8 {[%clk 0:01:03.5]} 32. d6
{[%clk 0:01:11]} 32... Rcd8 {[%clk 0:00:54.9]} 33. Rf5 {[%clk 0:01:08.6]} 33...
Qxb2 {[%clk 0:00:45.2]} 34. d7 {[%clk 0:01:02.5]} 34... Rg8 {[%clk 0:00:42.9]}
35. Qxc4 {[%clk 0:01:00.4]} 35... a4 {[%clk 0:00:28.5]} 36. e5 {[%clk
0:01:01.7]} 36... b3 {[%clk 0:00:28.4]} 37. axb3 {[%clk 0:01:02]} 37... axb3
{[%clk 0:00:29.6]} 38. e6 {[%clk 0:01:03.5]} 38... Qa3 {[%clk 0:00:22.2]} 39.
Qc5 {[%clk 0:00:42.7]} 39... Qa2 {[%clk 0:00:19.4]} 40. Qe5 {[%clk 0:00:32.5]}
40... b2 {[%clk 0:00:18.5]} 41. Rh5 {[%clk 0:00:33.8]} 41... b1=Q {[%clk
0:00:12.6]} 42. Rxh6+ {[%clk 0:00:34.1]} 1-0

[Event "*** Titled Tuesday Blitz"]
[Site "Chess.com"]
[Date "2018.01.02"]
[Round "2"]
[White "MateusViageiro"]
[Black "nickmatta"]
[Result "0-1"]
[WhiteElo "2166"]
[BlackElo "2236"]
[TimeControl "180+2"]
[EndTime "13:22:44 PST"]
[Termination "nickmatta won on time"]

1. e4 {[%clk 0:03:01.9]} 1... c5 {[%clk 0:02:58.7]} 2. Nf3 {[%clk 0:03:00.6]}
2... d6 {[%clk 0:02:59.8]} 3. d4 {[%clk 0:03:01.1]} 3... cxd4 {[%clk 0:03:01.7]}
4. Nxd4 {[%clk 0:03:01.5]} 4... Nf6 {[%clk 0:03:03.3]} 5. Nc3 {[%clk 0:03:02.2]}
5... a6 {[%clk 0:03:04.9]} 6. Be3 {[%clk 0:03:02.7]} 6... e6 {[%clk 0:03:05.4]}
7. f3 {[%clk 0:03:02.4]} 7... b5 {[%clk 0:03:03.9]} 8. a4 {[%clk 0:03:00.4]}
8... b4 {[%clk 0:03:03]} 9. Na2 {[%clk 0:02:59.5]} 9... Bb7 {[%clk 0:02:55.9]}
10. Bd3 {[%clk 0:02:52]} 10... d5 {[%clk 0:02:29.8]} 11. e5 {[%clk 0:02:50.1]}
11... Nfd7 {[%clk 0:02:31.2]} 12. f4 {[%clk 0:02:50.1]} 12... Nc6 {[%clk
0:02:21.1]} 13. O-O {[%clk 0:02:17.9]} 13... Bc5 {[%clk 0:02:21.7]} 14. c3
{[%clk 0:02:09.6]} 14... Qb6 {[%clk 0:02:22.8]} 15. Bc2 {[%clk 0:01:29.3]} 15...
a5 {[%clk 0:02:09]} 16. Kh1 {[%clk 0:01:25.6]} 16... Ba6 {[%clk 0:01:52.9]} 17.
Rf3 {[%clk 0:01:15.8]} 17... Rb8 {[%clk 0:01:45.5]} 18. Nxc6 {[%clk 0:00:42.2]}
18... Qxc6 {[%clk 0:01:47.4]} 19. cxb4 {[%clk 0:00:37.8]} 19... axb4 {[%clk
0:01:35.1]} 20. Rg3 {[%clk 0:00:33.5]} 20... Bxe3 {[%clk 0:01:32.2]} 21. Rxe3
{[%clk 0:00:30.3]} 21... Qc4 {[%clk 0:01:24.5]} 22. Bd3 {[%clk 0:00:25.2]} 22...
Qc6 {[%clk 0:01:10.1]} 23. Rg3 {[%clk 0:00:19.2]} 23... g6 {[%clk 0:01:08]} 24.
Rc1 {[%clk 0:00:17.4]} 24... Qa8 {[%clk 0:01:08.4]} 25. Qe2 {[%clk 0:00:15.1]}
25... Bxd3 {[%clk 0:01:04.6]} 26. Qxd3 {[%clk 0:00:15.8]} 26... Qxa4 {[%clk
0:01:06.1]} 27. Qb1 {[%clk 0:00:16.4]} 27... O-O {[%clk 0:01:05.2]} 28. b3
{[%clk 0:00:16.3]} 28... Qb5 {[%clk 0:01:03.9]} 29. h4 {[%clk 0:00:15.7]} 29...
Nc5 {[%clk 0:01:02.6]} 30. h5 {[%clk 0:00:15.5]} 30... Ne4 {[%clk 0:01:04.2]}
31. Rf3 {[%clk 0:00:14]} 31... Rfc8 {[%clk 0:01:01.2]} 32. Rxc8+ {[%clk
0:00:10.5]} 32... Rxc8 {[%clk 0:01:02.2]} 33. Kh2 {[%clk 0:00:11.6]} 33... Qe2
{[%clk 0:01:01.1]} 34. Qf1 {[%clk 0:00:06.4]} 34... Qxa2 {[%clk 0:01:00.2]} 35.
Qb5 {[%clk 0:00:05.2]} 35... Qd2 {[%clk 0:00:33.7]} 36. Qd7 {[%clk 0:00:05.1]}
36... Qc2 {[%clk 0:00:22.1]} 37. hxg6 {[%clk 0:00:03.9]} 37... hxg6 {[%clk
0:00:24]} 38. f5 {[%clk 0:00:03.1]} 38... Qc7 {[%clk 0:00:24.1]} 39. fxe6 {[%clk
0:00:02.3]} 39... Qxd7 {[%clk 0:00:24.9]} 40. exd7 {[%clk 0:00:02.9]} 40... Rd8
{[%clk 0:00:26.4]} 0-1

[Event "*** Titled Tuesday Blitz"]
[Site "Chess.com"]
[Date "2018.01.02"]
[Round "2"]
[White "pandamaster3000"]
[Black "StellarChessPro"]
[Result "1-0"]
[WhiteElo "2285"]
[BlackElo "2392"]
[TimeControl "180+2"]
[EndTime "13:22:47 PST"]
[Termination "pandamaster3000 won by resignation"]

1. e4 {[%clk 0:03:01.9]} 1... c6 {[%clk 0:02:30.4]} 2. d4 {[%clk 0:03:01.9]}
2... d5 {[%clk 0:02:31.1]} 3. exd5 {[%clk 0:03:02.7]} 3... cxd5 {[%clk
0:02:32.1]} 4. Bd3 {[%clk 0:03:04.3]} 4... Nf6 {[%clk 0:02:33.1]} 5. c3 {[%clk
0:03:05.6]} 5... e6 {[%clk 0:02:33.7]} 6. Bf4 {[%clk 0:03:06.6]} 6... Nc6 {[%clk
0:02:34]} 7. Nd2 {[%clk 0:03:07.4]} 7... Bd6 {[%clk 0:02:34.8]} 8. Bxd6 {[%clk
0:03:07.2]} 8... Qxd6 {[%clk 0:02:36.7]} 9. Ngf3 {[%clk 0:03:08.8]} 9... O-O
{[%clk 0:02:37.4]} 10. O-O {[%clk 0:03:10.2]} 10... e5 {[%clk 0:02:38.5]} 11.
dxe5 {[%clk 0:03:06.8]} 11... Nxe5 {[%clk 0:02:40.4]} 12. Nxe5 {[%clk
0:03:07.9]} 12... Qxe5 {[%clk 0:02:42.1]} 13. Re1 {[%clk 0:03:04.6]} 13... Qd6
{[%clk 0:02:41.1]} 14. h3 {[%clk 0:02:58.5]} 14... b6 {[%clk 0:02:40.1]} 15. Nf3
{[%clk 0:02:59.6]} 15... Bb7 {[%clk 0:02:41.1]} 16. Qc2 {[%clk 0:02:52.9]} 16...
Rfe8 {[%clk 0:02:40.5]} 17. Rad1 {[%clk 0:02:53.5]} 17... h6 {[%clk 0:02:40.2]}
18. Nd4 {[%clk 0:02:50.8]} 18... Qf4 {[%clk 0:02:37.8]} 19. Qc1 {[%clk
0:02:38.5]} 19... Qxc1 {[%clk 0:02:34.9]} 20. Rxc1 {[%clk 0:02:40.4]} 20... a6
{[%clk 0:02:36.1]} 21. a4 {[%clk 0:02:38.5]} 21... Kf8 {[%clk 0:02:35]} 22. Kf1
{[%clk 0:02:39]} 22... Ne4 {[%clk 0:02:34.1]} 23. Kg1 {[%clk 0:02:21.7]} 23...
g6 {[%clk 0:02:28.9]} 24. f3 {[%clk 0:02:13.8]} 24... Nc5 {[%clk 0:02:23.2]} 25.
Bc2 {[%clk 0:02:07.3]} 25... Rxe1+ {[%clk 0:02:19.7]} 26. Rxe1 {[%clk
0:02:09.2]} 26... Bc8 {[%clk 0:02:16.6]} 27. Kf2 {[%clk 0:02:06.1]} 27... Bd7
{[%clk 0:02:17.1]} 28. Ra1 {[%clk 0:01:52.7]} 28... Rc8 {[%clk 0:02:13.5]} 29.
Ke3 {[%clk 0:01:32.4]} 29... Re8+ {[%clk 0:02:12.3]} 30. Kf2 {[%clk 0:01:33.2]}
30... h5 {[%clk 0:02:08.4]} 31. b4 {[%clk 0:01:25]} 31... Nb7 {[%clk 0:02:03.7]}
32. Rd1 {[%clk 0:01:20]} 32... Nd6 {[%clk 0:01:59.4]} 33. Ne2 {[%clk 0:01:09.1]}
33... Be6 {[%clk 0:01:56.3]} 34. Nf4 {[%clk 0:01:07.2]} 34... Rc8 {[%clk
0:01:56.8]} 35. Nxd5 {[%clk 0:01:03.3]} 35... Bxd5 {[%clk 0:01:52.6]} 36. Rxd5
{[%clk 0:01:05.2]} 36... Rxc3 {[%clk 0:01:36.4]} 37. Rxd6 {[%clk 0:01:05.5]}
37... Rxc2+ {[%clk 0:01:36.8]} 38. Kg3 {[%clk 0:01:01.6]} 38... Ra2 {[%clk
0:01:36.9]} 39. Rxb6 {[%clk 0:00:58.8]} 39... Rxa4 {[%clk 0:01:37.1]} 40. b5
{[%clk 0:00:55.9]} 40... axb5 {[%clk 0:01:37]} 41. Rxb5 {[%clk 0:00:57.3]} 41...
h4+ {[%clk 0:01:38.9]} 42. Kh2 {[%clk 0:00:56.7]} 42... Kg7 {[%clk 0:01:39.3]}
43. Rd5 {[%clk 0:00:57.3]} 43... f6 {[%clk 0:01:38.8]} 44. Rd6 {[%clk
0:00:57.6]} 44... g5 {[%clk 0:01:39.7]} 45. Rc6 {[%clk 0:00:58.2]} 45... Kg6
{[%clk 0:01:40.7]} 46. Rb6 {[%clk 0:00:59.7]} 46... Rd4 {[%clk 0:01:40.9]} 47.
Rc6 {[%clk 0:01:00.4]} 47... Kf5 {[%clk 0:01:41.7]} 48. Rb6 {[%clk 0:00:58.2]}
48... Rd5 {[%clk 0:01:42]} 49. Rc6 {[%clk 0:00:54.3]} 49... Re5 {[%clk
0:01:42.4]} 50. Ra6 {[%clk 0:00:54.9]} 50... Re6 {[%clk 0:01:42.8]} 51. Ra4
{[%clk 0:00:49.3]} 51... Kg6 {[%clk 0:01:42.6]} 52. Ra5 {[%clk 0:00:50.2]} 52...
Rd6 {[%clk 0:01:42]} 53. Ra4 {[%clk 0:00:50.9]} 53... Kf7 {[%clk 0:01:42.5]} 54.
Ra7+ {[%clk 0:00:51.6]} 54... Ke6 {[%clk 0:01:43.6]} 55. Ra8 {[%clk 0:00:53.2]}
55... Ke5 {[%clk 0:01:44.7]} 56. Ra4 {[%clk 0:00:54.2]} 56... Rd4 {[%clk
0:01:43.7]} 57. Ra5+ {[%clk 0:00:54.5]} 57... Kf4 {[%clk 0:01:42.6]} 58. Ra6
{[%clk 0:00:54.8]} 58... f5 {[%clk 0:01:43.3]} 59. Ra8 {[%clk 0:00:56.2]} 59...
Rb4 {[%clk 0:01:43.3]} 60. Rf8 {[%clk 0:00:56.4]} 60... Rb2 {[%clk 0:01:40.6]}
61. Rg8 {[%clk 0:00:56.4]} 61... Rf2 {[%clk 0:01:40.3]} 62. Rf8 {[%clk
0:00:57.1]} 62... Ra2 {[%clk 0:01:39.9]} 63. Rg8 {[%clk 0:00:58]} 63... Ra5
{[%clk 0:01:39.9]} 64. Rf8 {[%clk 0:00:59.1]} 64... Ra6 {[%clk 0:01:37.4]} 65.
Rg8 {[%clk 0:01:00.2]} 65... Rf6 {[%clk 0:01:38.4]} 66. Rg7 {[%clk 0:01:01.3]}
66... Rf8 {[%clk 0:01:38.6]} 67. Rg6 {[%clk 0:01:02.3]} 67... Rf7 {[%clk
0:01:37.2]} 68. Rg8 {[%clk 0:01:03.5]} 68... Rf6 {[%clk 0:01:37.7]} 69. Rg7
{[%clk 0:01:05]} 69... Rd6 {[%clk 0:01:38.6]} 70. Rg8 {[%clk 0:01:05.8]} 70...
Rh6 {[%clk 0:01:38]} 71. Rg7 {[%clk 0:01:07]} 71... Rh5 {[%clk 0:01:38.9]} 72.
Ra7 {[%clk 0:01:06.9]} 72... Rh6 {[%clk 0:01:38.9]} 73. Rg7 {[%clk 0:01:08.4]}
73... Rh5 {[%clk 0:01:39.3]} 74. Rg8 {[%clk 0:01:09.3]} 74... Ke5 {[%clk
0:01:40.4]} 75. Rg7 {[%clk 0:01:10.5]} 75... Kf6 {[%clk 0:01:41.6]} 76. Ra7
{[%clk 0:01:11.3]} 76... Rh7 {[%clk 0:01:42.6]} 77. Rxh7 {[%clk 0:01:11.5]} 1-0